fUSD/lending_fUSD_20250415
["ID","MTS","AMOUNT","RATE_DAILY","PERIOD"]
[358074450,1744692642714,-47.77784339,0.00017996,2]
[358074451,1744692642724,-500.0,0.00017996,2]
[358074452,1744692642734,-500.0,0.00017996,2]
[358074453,1744692642744,-500.0,0.00017996,2]
[358074454,1744692642754,-211.58215659,0.00017996,2]
[358074457,1744692644516,-288.41784341,0.00017996,2]
[358074458,1744692644526,-500.0,0.00017996,2]
[358074459,1744692644535,-352.78484809,0.00017996,2]
[358074460,1744692644547,-147.21515191,0.00017996,2]
[358074461,1744692644559,-305.78484809,0.00017996,2]
[358074462,1744692644570,-200.70646713,0.00017996,2]
[358074463,1744692644579,-299.29353287,0.00017996,2]
[358074464,1744692645682,-200.70646713,0.00017996,2]
[358074465,1744692645692,-10425.82,0.00017996,2]
[358074466,1744692645702,-500.0,0.00017996,2]
[358074467,1744692645711,-500.0,0.00017996,2]
[358074468,1744692645720,-500.0,0.00017996,2]
[358074469,1744692645730,-500.0,0.00017996,2]
[358074470,1744692645739,-500.0,0.00017996,2]
[358074471,1744692645748,-500.0,0.00017996,2]
[358074472,1744692645758,-500.0,0.00017996,2]
[358074473,1744692645767,-500.0,0.00017996,2]
[358074474,1744692645776,-500.0,0.00017996,2]
[358074475,1744692645786,-500.0,0.00017996,2]
[358074476,1744692645795,-500.0,0.00017996,2]
[358074477,1744692645805,-500.0,0.00017996,2]
[358074479,1744692645961,-301.5165914,0.00017996,2]
[358074480,1744692645974,-500.0,0.00017996,2]
[358074481,1744692645984,-500.0,0.00017996,2]
[358074482,1744692645994,-556.63235403,0.00017996,2]
[358074483,1744692646003,-500.0,0.00017996,2]
[358074484,1744692646012,-500.0,0.00017996,2]
[358074485,1744692646022,-500.0,0.00017996,2]
[358074486,1744692646031,-500.0,0.00017996,2]
[358074487,1744692646040,-500.0,0.00017996,2]
[358074488,1744692646053,-500.0,0.00017996,2]
[358074489,1744692646062,-500.0,0.00017996,2]
[358074490,1744692646071,-500.0,0.00017996,2]
[358074491,1744692646081,-500.0,0.00017996,2]
[358074492,1744692646090,-500.0,0.00017996,2]
[358074493,1744692646100,-197.3651915,0.00017996,2]
[358074494,1744692646110,-500.0,0.00017996,2]
[358074495,1744692646119,-500.0,0.00017996,2]
[358074496,1744692646128,-500.0,0.00017996,2]
[358074497,1744692646138,-500.0,0.00017996,2]
[358074498,1744692646147,-500.0,0.00017996,2]
[358074499,1744692646157,-500.0,0.00017996,2]
[358074500,1744692646166,-518.80086195,0.00017996,2]
[358074501,1744692646176,-500.0,0.00017996,2]
[358074502,1744692646185,-500.0,0.00017996,2]
[358074503,1744692646194,-500.0,0.00017996,2]
[358074504,1744692646203,-500.0,0.00017996,2]
[358074505,1744692646213,-500.0,0.00017996,2]
[358074506,1744692646222,-553.07844838,0.00017996,2]
[358074507,1744692646232,-500.0,0.00017996,2]
[358074508,1744692646241,-500.0,0.00017996,2]
[358074509,1744692646250,-500.0,0.00017996,2]
[358074510,1744692646259,-500.0,0.00017996,2]
[358074511,1744692646268,-500.0,0.00017996,2]
[358074512,1744692646277,-500.0,0.00017996,2]
[358074513,1744692646286,-500.0,0.00017996,2]
[358074514,1744692646296,-507.13287609,0.00017996,2]
[358074515,1744692646305,-500.71793,0.00017996,2]
[358074516,1744692646314,-514.42412124,0.00017996,2]
[358074517,1744692646323,-500.0,0.00017996,2]
[358074518,1744692646332,-500.0,0.00017996,2]
[358074519,1744692646341,-500.0,0.00017996,2]
[358074520,1744692646351,-500.0,0.00017996,2]
[358074521,1744692646359,-500.0,0.00017996,2]
[358074522,1744692646368,-500.0,0.00017996,2]
[358074523,1744692646378,-500.0,0.00017996,2]
[358074524,1744692646387,-535.42283788,0.00017996,2]
[358074525,1744692646396,-518.57069854,0.00017996,2]
[358074526,1744692646406,-507.64424235,0.00017996,2]
[358074527,1744692646418,-500.0,0.00017996,2]
[358074528,1744692646427,-500.0,0.00017996,2]
[358074529,1744692646436,-500.0,0.00017997,2]
[358074530,1744692646446,-500.0,0.00017997,2]
[358074531,1744692646455,-500.0,0.00017997,2]
[358074532,1744692646464,-500.0,0.00017997,2]
[358074533,1744692646474,-500.0,0.00017997,2]
[358074534,1744692646484,-500.0,0.00017997,2]
[358074535,1744692646494,-500.0,0.00017997,2]
[358074536,1744692646503,-500.0,0.00017997,2]
[358074537,1744692646512,-500.0,0.00017997,2]
[358074538,1744692646521,-500.0,0.00017997,2]
[358074539,1744692646530,-500.0,0.00017997,2]
[358074540,1744692646540,-500.0,0.00017997,2]
[358074541,1744692646549,-500.0,0.00017997,2]
[358074542,1744692646558,-500.0,0.00017997,2]
[358074543,1744692646568,-500.0,0.00017997,2]
[358074544,1744692646577,-500.0,0.00017997,2]
[358074545,1744692646586,-500.0,0.00017997,2]
[358074546,1744692646595,-500.0,0.00017997,2]
[358074547,1744692646605,-500.0,0.00017997,2]
[358074548,1744692646614,-500.0,0.00017997,2]
[358074549,1744692646623,-500.0,0.00017997,2]
[358074550,1744692646632,-500.0,0.00017997,2]
[358074551,1744692646642,-199.16737951,0.00017997,2]
[358074552,1744692646654,-300.83262049,0.00017997,2]
[358074553,1744692646665,-500.0,0.00017997,2]
[358074554,1744692646675,-543.32015845,0.00017997,2]
[358074555,1744692646684,-500.0,0.00017997,2]
[358074556,1744692646694,-500.0,0.00017997,2]
[358074557,1744692646703,-500.0,0.00017997,2]
[358074558,1744692646712,-395.45429718,0.00017997,2]
[358074559,1744692646724,-104.54570282,0.00017997,2]
[358074560,1744692646735,-446.63868401,0.00017997,2]
[358074561,1744692646747,-53.36131599,0.00017997,2]
[358074562,1744692646757,-273.51896013,0.00017997,2]
[358074563,1744692646779,-427.3609278,0.00017995,2]
[358074564,1744692646788,-226.48103987,0.00017997,2]
[358074565,1744692646798,-34.78067049,0.00017997,2]
[358074569,1744692656936,-242.01,0.00017535,2]
[358074574,1744692807681,3179.605,0.00025,30]
[358074575,1744692811430,1400.0,0.00014,2]
[358074576,1744692833297,1671.44586063,0.00015,3]
[358074577,1744692841430,350.0,0.00019599,12]
[358074578,1744692913563,1000.0,0.00017052,2]
[358074579,1744692934228,397.88,0.00017052,2]
[358074580,1744693776930,583.3,0.00015176,2]
[358074581,1744693777153,583.3,0.0001744,2]
[358074594,1744693831711,-291.1987754,0.00017817,2]
[358074595,1744693831722,-250.0,0.00017836,2]
[358074596,1744693831731,-250.0,0.00017836,2]
[358074597,1744693831741,-3965.0,0.00017862,2]
[358074598,1744693831751,-865.0,0.00017862,2]
[358074599,1744693831761,-152.0,0.00017862,2]
[358074600,1744693831770,-651.936566,0.00017894,2]
[358074601,1744693831779,-651.936566,0.00017894,2]
[358074602,1744693831789,-2500.0,0.00017897,2]
[358074603,1744693831799,-1764.26524536,0.000179,2]
[358074604,1744693831808,-150.0,0.00017907,2]
[358074605,1744693831818,-150.0,0.00017907,2]
[358074606,1744693831827,-150.0,0.00017907,2]
[358074607,1744693831836,-300.0,0.00017907,2]
[358074608,1744693831846,-300.0,0.00017907,2]
[358074609,1744693831855,-150.0,0.00017908,2]
[358074610,1744693831865,-2047.0,0.00017908,2]
[358074611,1744693831875,-1288.0,0.00017908,2]
[358074612,1744693831885,-1328.0,0.00017908,2]
[358074613,1744693831894,-791.0,0.00017908,2]
[358074614,1744693831904,-545.0,0.00017908,2]
[358074615,1744693831913,-908.0,0.00017908,2]
[358074616,1744693831923,-1438.0,0.00017908,2]
[358074617,1744693831932,-1280.0,0.00017908,2]
[358074618,1744693831942,-575.0,0.00017908,2]
[358074619,1744693831951,-4149.0,0.00017908,2]
[358074620,1744693831961,-546.872,0.00017908,2]
[358074621,1744693831970,-646.3707667,0.00017983,2]
[358074622,1744693831979,-6845.57944804,0.00017983,2]
[358074623,1744693831990,-331.14851368,0.00017983,2]
[358074624,1744693832002,-447.9066844,0.00017983,2]
[358074625,1744693832022,-350.0,0.00017983,2]
[358074663,1744693837696,-401.62255153,0.00017862,2]
[358074667,1744693837850,-339.7872651,0.00017862,2]
[358074668,1744693837907,-381.59018337,0.00017862,2]
[358074669,1744693837918,-14129.38942598,0.00017983,2]
[358074670,1744693837927,-529.3107971,0.00017983,2]
[358074671,1744693837938,-439.3462466,0.00017983,2]
[358074672,1744693837948,-11495.3961283,0.00017983,2]
[358074673,1744693837957,-363.1010928,0.00017983,2]
[358074674,1744693837967,-500.0,0.00017987,2]
[358074675,1744693837977,-280.49400063,0.00017987,2]
[358074676,1744693837985,-646.3707667,0.00017988,2]
[358074677,1744693837994,-646.3707667,0.00017988,2]
[358074678,1744693838004,-18092.3115419,0.00017988,2]
[358074679,1744693838018,-14051.87248537,0.00017988,2]
[358074680,1744693838030,-28.72652643,0.00017988,2]
[358074681,1744693838039,-358.54347357,0.00017988,2]
[358074682,1744693838051,-170.76732353,0.00017988,2]
[358074683,1744693838060,-529.3107971,0.00017988,2]
[358074684,1744693838069,-439.3462466,0.00017988,2]
[358074685,1744693838079,-439.3462466,0.00017988,2]
[358074686,1744693838087,-9420.0942836,0.00017988,2]
[358074687,1744693838096,-7344.792439,0.00017988,2]
[358074688,1744693838105,-363.1010928,0.00017988,2]
[358074689,1744693838114,-363.1010928,0.00017988,2]
[358074690,1744693838123,-213.48528983,0.00017988,2]
[358074691,1744693838132,-500.0,0.00017995,2]
[358074692,1744693838141,-2570.0,0.00017995,2]
[358074693,1744693838150,-1413.0,0.00017995,2]
[358074694,1744693838159,-500.0,0.00017995,2]
[358074695,1744693838168,-500.0,0.00017995,2]
[358074696,1744693838178,-500.0,0.00017995,2]
[358074697,1744693838187,-150.0,0.00017995,2]
[358074698,1744693838196,-71.58618686,0.00017995,2]
[358074699,1744693838208,-180.81587041,0.00017995,2]
[358074700,1744693838217,-299.2133826,0.00017996,2]
[358074704,1744693839875,-200.7866174,0.00017996,2]
[358074705,1744693839885,-500.0,0.00017996,2]
[358074706,1744693839895,-500.0,0.00017996,2]
[358074707,1744693839904,-438.22591053,0.00017996,2]
[358074708,1744693839985,-61.77408947,0.00017996,2]
[358074709,1744693839995,-176.29737963,0.00017996,2]
[358074710,1744693840004,-500.0,0.00017996,2]
[358074711,1744693840014,-432.13134986,0.00017996,2]
[358074712,1744693840025,-28.9781531,0.00017996,2]
[358074713,1744693840035,-500.0,0.00017996,2]
[358074714,1744693840044,-500.0,0.00017996,2]
[358074715,1744693840053,-542.08162294,0.00017996,2]
[358074716,1744693840063,-500.0,0.00017996,2]
[358074717,1744693840072,-500.0,0.00017996,2]
[358074718,1744693840081,-525.38,0.00017996,2]
[358074719,1744693840091,-500.0,0.00017996,2]
[358074720,1744693840100,-500.0,0.00017996,2]
[358074721,1744693840109,-504.30172002,0.00017996,2]
[358074722,1744693840119,-500.0,0.00017996,2]
[358074723,1744693840128,-505.43402451,0.00017996,2]
[358074724,1744693840138,-500.0,0.00017996,2]
[358074725,1744693840147,-500.0,0.00017996,2]
[358074726,1744693840157,-504.97311187,0.00017996,2]
[358074727,1744693840167,-500.0,0.00017996,2]
[358074728,1744693840176,-513.03891957,0.00017996,2]
[358074729,1744693840186,-503.51938589,0.00017996,2]
[358074730,1744693840196,-519.4144248,0.00017996,2]
[358074731,1744693840205,-347.79676088,0.00017996,2]
[358074732,1744693840215,-364.83036486,0.00017996,2]
[358074733,1744693840224,-507.41659481,0.00017996,2]
[358074734,1744693840233,-500.0,0.00017997,2]
[358074735,1744693840243,-500.0,0.00017997,2]
[358074736,1744693840252,-194.85654402,0.00017997,2]
[358074737,1744693840262,-500.0,0.00017997,2]
[358074738,1744693840271,-500.0,0.00017997,2]
[358074739,1744693840280,-500.0,0.00017997,2]
[358074740,1744693840290,-500.0,0.00017997,2]
[358074741,1744693840300,-500.0,0.00017997,2]
[358074742,1744693840309,-500.0,0.00017997,2]
[358074743,1744693840318,-500.0,0.00017997,2]
[358074744,1744693840327,-500.0,0.00017997,2]
[358074745,1744693840336,-500.0,0.00017997,2]
[358074746,1744693840345,-500.0,0.00017997,2]
[358074747,1744693840355,-500.0,0.00017997,2]
[358074748,1744693840367,-500.0,0.00017997,2]
[358074749,1744693840375,-500.0,0.00017997,2]
[358074751,1744693840384,-500.0,0.00017997,2]
[358074753,1744693840393,-500.0,0.00017997,2]
[358074754,1744693840403,-500.0,0.00017997,2]
[358074755,1744693840413,-500.0,0.00017997,2]
[358074756,1744693840423,-500.0,0.00017997,2]
[358074757,1744693840434,-529.00341849,0.00017997,2]
[358074758,1744693840443,-500.0,0.00017997,2]
[358074759,1744693840454,-500.0,0.00017997,2]
[358074760,1744693840464,-608.97,0.00017997,2]
[358074761,1744693840473,-500.0,0.00017997,2]
[358074762,1744693840482,-500.0,0.00017997,2]
[358074763,1744693840493,-11016.4,0.00017997,2]
[358074764,1744693840502,-2877.66145425,0.00017997,2]
[358074765,1744693840514,-1555.28003459,0.00017997,2]
[358074766,1744693840531,-4644.54067069,0.00017997,2]
[358074767,1744693840539,-1429.87219423,0.00017997,2]
[358074776,1744693844699,-509.04564624,0.00017997,2]
[358074777,1744693844708,-500.0,0.00017997,2]
[358074778,1744693844717,-500.0,0.00017997,2]
[358074779,1744693844726,-500.0,0.00017997,2]
[358074780,1744693844735,-500.0,0.00017997,2]
[358074781,1744693844744,-500.0,0.00017997,2]
[358074782,1744693844753,-500.0,0.00017997,2]
[358074783,1744693844763,-500.0,0.00017997,2]
[358074784,1744693844772,-500.0,0.00017997,2]
[358074785,1744693844781,-250.54470712,0.00017997,2]
[358074786,1744693844790,-500.0,0.00017997,2]
[358074787,1744693844799,-500.0,0.00017997,2]
[358074788,1744693844808,-500.0,0.00017997,2]
[358074789,1744693844817,-500.0,0.00017997,2]
[358074790,1744693844826,-500.0,0.00017997,2]
[358074791,1744693844836,-500.0,0.00017997,2]
[358074792,1744693844845,-500.0,0.00017997,2]
[358074793,1744693844855,-500.0,0.00017997,2]
[358074794,1744693844864,-500.0,0.00017997,2]
[358074795,1744693844874,-500.0,0.00017997,2]
[358074796,1744693844883,-500.0,0.00017997,2]
[358074797,1744693844893,-500.0,0.00017997,2]
[358074798,1744693844902,-500.0,0.00017997,2]
[358074799,1744693844911,-500.0,0.00017997,2]
[358074800,1744693844921,-500.0,0.00017997,2]
[358074801,1744693844931,-500.0,0.00017997,2]
[358074802,1744693844941,-500.0,0.00017997,2]
[358074803,1744693844950,-500.0,0.00017997,2]
[358074804,1744693844959,-500.0,0.00017997,2]
[358074805,1744693844968,-500.0,0.00017997,2]
[358074806,1744693844978,-500.0,0.00017997,2]
[358074807,1744693844988,-500.0,0.00017997,2]
[358074808,1744693844999,-500.0,0.00017997,2]
[358074809,1744693845009,-598.8,0.00017997,2]
[358074810,1744693845019,-500.0,0.00017997,2]
[358074811,1744693845028,-500.0,0.00017997,2]
[358074812,1744693845037,-500.0,0.00017997,2]
[358074813,1744693845046,-500.0,0.00017997,2]
[358074814,1744693845055,-525.27778871,0.00017997,2]
[358074815,1744693845064,-500.0,0.00017997,2]
[358074816,1744693845073,-500.0,0.00017997,2]
[358074817,1744693845082,-500.0,0.00017997,2]
[358074818,1744693845091,-500.0,0.00017997,2]
[358074819,1744693845101,-500.0,0.00017997,2]
[358074820,1744693845112,-285.98,0.00017997,2]
[358074821,1744693845121,-252166.30423308,0.00017998,2]
[358074822,1744693845130,-916.01916263,0.00017998,2]
[358074823,1744693845139,-500.0,0.00017998,2]
[358074824,1744693845148,-500.0,0.00017998,2]
[358074825,1744693845158,-500.0,0.00017998,2]
[358074826,1744693845168,-229.76465916,0.00017998,2]
[358074827,1744693845178,-500.0,0.00017998,2]
[358074828,1744693845188,-500.0,0.00017998,2]
[358074829,1744693845200,-500.0,0.00017998,2]
[358074830,1744693845210,-500.0,0.00017998,2]
[358074831,1744693845221,-500.0,0.00017998,2]
[358074832,1744693845231,-500.0,0.00017998,2]
[358074833,1744693845241,-500.0,0.00017998,2]
[358074834,1744693845252,-500.0,0.00017998,2]
[358074835,1744693845262,-500.0,0.00017998,2]
[358074836,1744693845272,-500.0,0.00017998,2]
[358074837,1744693845282,-225.74,0.00017998,2]
[358074838,1744693845292,-500.0,0.00017998,2]
[358074839,1744693845301,-298.36765751,0.00017998,2]
[358074840,1744693845311,-500.0,0.00017998,2]
[358074841,1744693845321,-500.0,0.00017998,2]
[358074842,1744693845330,-500.0,0.00017998,2]
[358074843,1744693845339,-500.0,0.00017998,2]
[358074844,1744693845348,-500.0,0.00017998,2]
[358074845,1744693845357,-500.0,0.00017998,2]
[358074846,1744693845371,-500.0,0.00017998,2]
[358074847,1744693845382,-500.0,0.00017998,2]
[358074848,1744693845391,-500.0,0.00017998,2]
[358074849,1744693845401,-500.0,0.00017998,2]
[358074850,1744693845409,-500.0,0.00017998,2]
[358074851,1744693845418,-500.0,0.00017998,2]
[358074852,1744693845427,-528.00362924,0.00017998,2]
[358074853,1744693845437,-500.0,0.00017998,2]
[358074854,1744693845449,-500.0,0.00017998,2]
[358074855,1744693845458,-500.0,0.00017998,2]
[358074857,1744693845467,-500.0,0.00017998,2]
[358074858,1744693845478,-500.0,0.00017998,2]
[358074859,1744693845487,-500.0,0.00017998,2]
[358074860,1744693845496,-500.0,0.00017998,2]
[358074861,1744693845505,-500.0,0.00017998,2]
[358074862,1744693845515,-500.0,0.00017998,2]
[358074863,1744693845524,-500.0,0.00017998,2]
[358074864,1744693845533,-500.0,0.00017998,2]
[358074865,1744693845543,-500.0,0.00017998,2]
[358074866,1744693845552,-153.0004918,0.00017998,2]
[358074868,1744693845561,-500.0,0.00017998,2]
[358074869,1744693845571,-500.0,0.00017998,2]
[358074870,1744693845580,-500.0,0.00017998,2]
[358074871,1744693845588,-500.0,0.00017998,2]
[358074872,1744693845598,-500.0,0.00017998,2]
[358074873,1744693845607,-500.0,0.00017998,2]
[358074874,1744693845616,-162.53,0.00017998,2]
[358074875,1744693845626,-500.0,0.00017998,2]
[358074876,1744693845635,-500.0,0.00017998,2]
[358074877,1744693845644,-500.0,0.00017998,2]
[358074878,1744693845653,-400.51392281,0.00017998,2]
[358074879,1744693845663,-500.0,0.00017998,2]
[358074880,1744693845672,-500.0,0.00017998,2]
[358074881,1744693845681,-465.21932951,0.00017998,2]
[358074882,1744693845690,-353.64181835,0.00017998,2]
[358074883,1744693845700,-500.0,0.00017998,2]
[358074884,1744693845709,-500.0,0.00017998,2]
[358074885,1744693845718,-500.0,0.00017998,2]
[358074886,1744693845728,-258.1125579,0.00017998,2]
[358074888,1744693845739,-500.0,0.00017998,2]
[358074890,1744693845750,-500.0,0.00017998,2]
[358074892,1744693845761,-500.0,0.00017998,2]
[358074894,1744693845769,-500.0,0.00017998,2]
[358074896,1744693845779,-500.0,0.00017998,2]
[358074898,1744693845788,-500.0,0.00017998,2]
[358074899,1744693845798,-500.0,0.00017998,2]
[358074900,1744693845807,-500.0,0.00017998,2]
[358074901,1744693845816,-633.15133177,0.00017998,2]
[358074902,1744693845825,-500.0,0.00017998,2]
[358074903,1744693845834,-500.0,0.00017998,2]
[358074904,1744693845843,-500.0,0.00017998,2]
[358074905,1744693845852,-523.77930001,0.00017998,2]
[358074906,1744693845862,-500.0,0.00017998,2]
[358074907,1744693845871,-500.0,0.00017998,2]
[358074908,1744693845880,-500.0,0.00017998,2]
[358074909,1744693845891,-523.85747907,0.00017998,2]
[358074910,1744693845900,-505.3451314,0.00017998,2]
[358074911,1744693845909,-500.0,0.00017998,2]
[358074912,1744693845919,-500.0,0.00017998,2]
[358074913,1744693845928,-500.0,0.00017998,2]
[358074914,1744693845938,-500.0,0.00017998,2]
[358074915,1744693845947,-456.23552071,0.00017998,2]
[358074916,1744693845957,-500.0,0.00017998,2]
[358074917,1744693845966,-676.0,0.00017998,2]
[358074918,1744693845975,-676.0,0.00017998,2]
[358074919,1744693845984,-676.0,0.00017998,2]
[358074920,1744693845993,-500.0,0.00017998,2]
[358074921,1744693846003,-214.79,0.00017998,2]
[358074922,1744693846012,-500.0,0.00017998,2]
[358074923,1744693846021,-500.0,0.00017998,2]
[358074924,1744693846030,-500.0,0.00017998,2]
[358074925,1744693846040,-500.0,0.00017998,2]
[358074926,1744693846050,-500.0,0.00017998,2]
[358074927,1744693846059,-500.0,0.00017998,2]
[358074928,1744693846068,-545.42474336,0.00017998,2]
[358074929,1744693846078,-500.0,0.00017998,2]
[358074930,1744693846087,-500.0,0.00017998,2]
[358074931,1744693846097,-500.0,0.00017998,2]
[358074932,1744693846106,-516.14078427,0.00017998,2]
[358074933,1744693846115,-531.31353633,0.00017998,2]
[358074934,1744693846124,-500.0,0.00017998,2]
[358074935,1744693846134,-500.0,0.00017998,2]
[358074936,1744693846143,-500.0,0.00017998,2]
[358074937,1744693846152,-500.0,0.00017998,2]
[358074938,1744693846162,-500.0,0.00017998,2]
[358074939,1744693846171,-500.0,0.00017998,2]
[358074940,1744693846182,-500.0,0.00017998,2]
[358074941,1744693846191,-533.49730467,0.00017998,2]
[358074942,1744693846200,-500.0,0.00017998,2]
[358074943,1744693846210,-557.10593138,0.00017998,2]
[358074944,1744693846220,-500.0,0.00017998,2]
[358074945,1744693846229,-500.0,0.00017998,2]
[358074946,1744693846238,-500.0,0.00017998,2]
[358074947,1744693846247,-500.0,0.00017998,2]
[358074948,1744693846256,-539.59161975,0.00017998,2]
[358074949,1744693846266,-500.0,0.00017998,2]
[358074950,1744693846275,-500.0,0.00017998,2]
[358074951,1744693846284,-614.04,0.00017998,2]
[358074953,1744693846294,-507.01957378,0.00017998,2]
[358074954,1744693846304,-500.0,0.00017998,2]
[358074955,1744693846313,-612.11,0.00017998,2]
[358074956,1744693846322,-500.0,0.00017998,2]
[358074957,1744693846331,-500.0,0.00017998,2]
[358074958,1744693846341,-500.0,0.00017998,2]
[358074959,1744693846350,-514.81,0.00017998,2]
[358074961,1744693846361,-500.0,0.00017998,2]
[358074962,1744693846372,-500.0,0.00017998,2]
[358074964,1744693846382,-500.0,0.00017998,2]
[358074965,1744693846391,-500.0,0.00017998,2]
[358074966,1744693846401,-500.0,0.00017998,2]
[358074967,1744693846411,-500.0,0.00017998,2]
[358074968,1744693846420,-496.33427459,0.00017998,2]
[358074969,1744693846429,-513.07080944,0.00017998,2]
[358074970,1744693846439,-500.0,0.00017998,2]
[358074971,1744693846448,-500.0,0.00017998,2]
[358074972,1744693846457,-500.0,0.00017998,2]
[358074973,1744693846466,-500.0,0.00017998,2]
[358074974,1744693846475,-533.39218202,0.00017998,2]
[358074975,1744693846485,-500.0,0.00017998,2]
[358074976,1744693846494,-541.59,0.00017998,2]
[358074977,1744693846503,-500.0,0.00017998,2]
[358074978,1744693846512,-500.0,0.00017998,2]
[358074979,1744693846522,-458.47566794,0.00017998,2]
[358074980,1744693846531,-500.0,0.00017998,2]
[358074981,1744693846541,-500.0,0.00017998,2]
[358074982,1744693846550,-500.0,0.00017998,2]
[358074983,1744693846560,-500.0,0.00017998,2]
[358074984,1744693846569,-500.0,0.00017998,2]
[358074985,1744693846578,-500.0,0.00017998,2]
[358074986,1744693846588,-500.0,0.00017998,2]
[358074987,1744693846597,-516.42659789,0.00017998,2]
[358074988,1744693846607,-519.50842793,0.00017998,2]
[358074989,1744693846617,-529.16106802,0.00017998,2]
[358074990,1744693846626,-534.64694181,0.00017998,2]
[358074991,1744693846635,-500.0,0.00017998,2]
[358074992,1744693846645,-500.0,0.00017998,2]
[358074993,1744693846655,-500.0,0.00017998,2]
[358074994,1744693846664,-551.32152198,0.00017998,2]
[358074995,1744693846674,-2000.0,0.00017998,2]
[358074996,1744693846684,-503.00332705,0.00017998,2]
[358074997,1744693846694,-500.0,0.00017998,2]
[358074998,1744693846703,-500.0,0.00017998,2]
[358074999,1744693846713,-512.79742618,0.00017998,2]
[358075000,1744693846723,-500.0,0.00017998,2]
[358075001,1744693846732,-500.0,0.00017998,2]
[358075002,1744693846742,-11016.4,0.00017998,2]
[358075003,1744693846751,-500.0,0.00017998,2]
[358075004,1744693846760,-500.0,0.00017998,2]
[358075005,1744693846770,-573.86445694,0.00017998,2]
[358075006,1744693846780,-525.62202961,0.00017998,2]
[358075007,1744693846790,-500.0,0.00017998,2]
[358075008,1744693846800,-500.0,0.00017998,2]
[358075009,1744693846810,-500.0,0.00017998,2]
[358075010,1744693846819,-500.0,0.00017998,2]
[358075011,1744693846831,-500.0,0.00017998,2]
[358075012,1744693846842,-500.0,0.00017998,2]
[358075013,1744693846852,-539.27902671,0.00017998,2]
[358075014,1744693846861,-500.0,0.00017998,2]
[358075015,1744693846871,-156.984525,0.00017998,2]
[358075016,1744693846881,-508.29445465,0.00017998,2]
[358075017,1744693846890,-500.0,0.00017998,2]
[358075018,1744693846899,-323.30628328,0.00017998,2]
[358075019,1744693846909,-500.0,0.00017998,2]
[358075020,1744693846918,-500.0,0.00017998,2]
[358075021,1744693846928,-487.7544832,0.00017998,2]
[358075022,1744693846937,-505.79520578,0.00017998,2]
[358075023,1744693846947,-500.0,0.00017998,2]
[358075024,1744693846957,-592.13205625,0.00017998,2]
[358075025,1744693846967,-500.0,0.00017998,2]
[358075026,1744693846977,-500.0,0.00017998,2]
[358075027,1744693846986,-500.0,0.00017998,2]
[358075028,1744693846995,-500.0,0.00017998,2]
[358075029,1744693847005,-500.0,0.00017998,2]
[358075030,1744693847013,-500.0,0.00017998,2]
[358075031,1744693847022,-500.0,0.00017998,2]
[358075032,1744693847031,-500.0,0.00017998,2]
[358075033,1744693847040,-535.57798471,0.00017998,2]
[358075034,1744693847050,-500.0,0.00017998,2]
[358075035,1744693847058,-507.51483558,0.00017998,2]